{"text_format":"3","workbook":"xlsx","n_sheets":4,"sheets":["เริ่มต้น","พารามิเตอร์ของโครงการ","รายละเอียดโครงการ","ผลรวมของโครงการ"],"not_rendered":{"charts":2,"defined_names":3,"pivot_tables":1},"read":"whole","date_system":"1900"}

{"sheet":"เริ่มต้น","index":0,"n_rows":7,"n_cols":2,"rows_kept":7}
[null,"เกี่ยวกับเทมเพลตนี้"]
[null,"ติดตามพารามิเตอร์โครงการ รายละเอียดโครงการ และผลรวมของโครงการในเวิร์กบุ๊กตัวติดตามการวางแผนกิจกรรมนี้"]
[null,"ใส่ข้อมูลในเวิร์กชีตพารามิเตอร์โครงการเพื่ออัปเดตแผนภูมิคอลัมน์ และในเวิร์กชีตรายละเอียดโครงการ PivotTable ในเวิร์กชีตผลรวมของโครงการจะอัปเดตโดยอัตโนมัติ"]
[null,"กรอกข้อมูลชื่อบริษัทในเวิร์กชีตพารามิเตอร์ และจะมีการโดยอัตโนมัติในเวิร์กชีตอื่นๆ"]
[null,"หมายเหตุ:  "]
[null,"คำแนะนำเพิ่มเติมจะอยู่ในคอลัมน์ A ในเวิร์กชีตแต่ละแผ่นในเวิร์กบุ๊กตัวติดตามการวางแผนกิจกรรม ข้อความนี้ได้ถูกซ่อนไว้โดยตั้งใจ เมื่อต้องการเอาข้อความออก ให้เลือกคอลัมน์ A แล้วเลือก ลบ เมื่อต้องการยกเลิกการซ่อนข้อความ ให้เลือกคอลัมน์ A แล้วเปลี่ยนสีฟอนต์"]
[null,"เมื่อต้องการเรียนรู้เพิ่มเติมเกี่ยวกับตารางในเวิร์กชีต ให้กด SHIFT แล้วตามด้วย F10 ภายในตาราง เลือกตัวเลือก ตาราง จากนั้นเลือก ข้อความแสดงแทน"]

{"sheet":"พารามิเตอร์ของโครงการ","index":1,"n_rows":24,"n_cols":9,"rows_kept":24,"merged":[[23,1,42,3]]}
["สร้างพารามิเตอร์โครงการในเวิร์กชีตนี้ ใส่ชื่อบริษัทในเซลล์ด้านขวา คำแนะนำที่มีประโยชน์จะอยู่ในเซลล์ในคอลัมน์นี้ ใช้ลูกศรลงเพื่อเริ่มต้นใช้งาน","ชื่อบริษัท"]
["ชื่อของเวิร์กชีตนี้จะอยู่ในเซลล์ด้านขวา","ตัวติดตามโครงการการจัดการกิจกรรม"]
["ข้อความที่เป็นความลับจะอยู่ในเซลล์ด้านขวา",{"$f":"B1&\"ที่เป็นความลับ\"","v":"ชื่อบริษัทที่เป็นความลับ"}]
["เคล็ดลับจะอยู่ในเซลล์ด้านขวา","เซลล์ที่แรเงาไว้จะคำนวณให้คุณโดยอัตโนมัติ คุณไม่จำเป็นต้องป้อนข้อมูลในเซลล์เหล่านี้"]
["ใส่รายละเอียดในตารางพารามิเตอร์โดยเริ่มจากเซลล์ด้านขวา คำแนะนำถัดไปอยู่ในเซลล์ A12","ชนิดโครงการ","ผู้จัดการบัญชี","ผู้จัดการโครงการ","ผู้จัดการกลยุทธ์","ผู้เชี่ยวชาญด้านการออกแบบ","เจ้าหน้าที่จัดกิจกรรม","เจ้าหน้าที่ธุรการ","ผลรวม"]
[null,"การพัฒนากลยุทธ์ของกิจกรรม",{"v":0.2,"d":"20%"},{"v":0.1,"d":"10%"},{"v":0.6,"d":"60%"},{"v":0,"d":"0%"},{"v":0,"d":"0%"},{"v":0.1,"d":"10%"},{"$f":"SUM(พารามิเตอร์[[#This Row],[ผู้จัดการบัญชี]:[เจ้าหน้าที่ธุรการ]])","v":{"v":1,"d":"100%"}}]
[null,"การวางแผนกิจกรรม",{"v":0.2,"d":"20%"},{"v":0.5,"d":"50%"},{"v":0.1,"d":"10%"},{"v":0.1,"d":"10%"},{"v":0,"d":"0%"},{"v":0.1,"d":"10%"},{"$f":"SUM(พารามิเตอร์[[#This Row],[ผู้จัดการบัญชี]:[เจ้าหน้าที่ธุรการ]])","v":{"v":0.9999999999999999,"d":"100%"}}]
[null,"การออกแบบกิจกรรม",{"v":0.2,"d":"20%"},{"v":0.2,"d":"20%"},{"v":0,"d":"0%"},{"v":0.5,"d":"50%"},{"v":0,"d":"0%"},{"v":0.1,"d":"10%"},{"$f":"SUM(พารามิเตอร์[[#This Row],[ผู้จัดการบัญชี]:[เจ้าหน้าที่ธุรการ]])","v":{"v":1,"d":"100%"}}]
[null,"ลอจิสติกส์ของกิจกรรม",{"v":0.2,"d":"20%"},{"v":0.6,"d":"60%"},{"v":0,"d":"0%"},{"v":0,"d":"0%"},{"v":0.1,"d":"10%"},{"v":0.1,"d":"10%"},{"$f":"SUM(พารามิเตอร์[[#This Row],[ผู้จัดการบัญชี]:[เจ้าหน้าที่ธุรการ]])","v":{"v":1,"d":"100%"}}]
[null,"การจัดหาเจ้าหน้าที่จัดกิจกรรม",{"v":0.2,"d":"20%"},{"v":0.1,"d":"10%"},{"v":0,"d":"0%"},{"v":0,"d":"0%"},{"v":0.6,"d":"60%"},{"v":0.1,"d":"10%"},{"$f":"SUM(พารามิเตอร์[[#This Row],[ผู้จัดการบัญชี]:[เจ้าหน้าที่ธุรการ]])","v":{"v":1,"d":"100%"}}]
[null,"การประเมินกิจกรรม",{"v":0.2,"d":"20%"},{"v":0.2,"d":"20%"},{"v":0.2,"d":"20%"},{"v":0.2,"d":"20%"},{"v":0,"d":"0%"},{"v":0.2,"d":"20%"},{"$f":"SUM(พารามิเตอร์[[#This Row],[ผู้จัดการบัญชี]:[เจ้าหน้าที่ธุรการ]])","v":{"v":1,"d":"100%"}}]
["ใส่อัตราผสมในเซลล์ด้านขวา ตั้งแต่เซลล์ C12 ถึง H12 คำแนะนำถัดไปอยู่ในเซลล์ A14","อัตราผสม",{"v":180,"d":"฿180"},{"v":120,"d":"฿120"},{"v":150,"d":"฿150"},{"v":100,"d":"฿100"},{"v":80,"d":"฿80"},{"v":60,"d":"฿60"}]
[]
["แผนภูมิคอลัมน์ที่แสดงต้นทุนที่วางแผนไว้เปรียบเทียบกับต้นทุนจริงอยู่ในเซลล์ด้านขวา และแผนภูมิคอลัมน์ที่แสดงชั่วโมงที่วางแผนไว้เปรียบเทียบชั่วโมงจริงอยู่ในเซลล์ F14",{"$nulls":4},"แผนภูมิคอลัมน์ที่แสดงชั่วโมงที่วางแผนไว้เปรียบเทียบกับชั่วโมงจริงอยู่ในเซลล์นี้"]
[null,null,"ผู้จัดการบัญชี","ผู้จัดการโครงการ","ผู้จัดการกลยุทธ์","ผู้เชี่ยวชาญด้านการออกแบบ","เจ้าหน้าที่จัดกิจกรรม","เจ้าหน้าที่ธุรการ"]
[null,"ต้นทุนที่วางแผนไว้",{"$f":"SUBTOTAL(109,รายละเอียดโครงการ[ผู้จัดการบัญชี])","v":{"v":54000,"d":"฿54,000.00"}},{"$f":"SUBTOTAL(109,รายละเอียดโครงการ[ผู้จัดการโครงการ])","v":{"v":52200,"d":"฿52,200.00"}},{"$f":"SUBTOTAL(109,รายละเอียดโครงการ[ผู้จัดการกลยุทธ์])","v":{"v":24000,"d":"฿24,000.00"}},{"$f":"SUBTOTAL(109,รายละเอียดโครงการ[ผู้เชี่ยวชาญด้านการออกแบบ])","v":{"v":29000,"d":"฿29,000.00"}},{"$f":"SUBTOTAL(109,รายละเอียดโครงการ[เจ้าหน้าที่จัดกิจกรรม])","v":{"v":13200,"d":"฿13,200.00"}},{"$f":"SUBTOTAL(109,รายละเอียดโครงการ[เจ้าหน้าที่ธุรการ])","v":{"v":9000,"d":"฿9,000.00"}}]
[null,"ต้นทุนจริง",{"$f":"SUBTOTAL(109,รายละเอียดโครงการ[[ผู้จัดการบัญชี ]])","v":{"v":54360,"d":"฿54,360.00"}},{"$f":"SUBTOTAL(109,รายละเอียดโครงการ[[ผู้จัดการโครงการ ]])","v":{"v":51540,"d":"฿51,540.00"}},{"$f":"SUBTOTAL(109,รายละเอียดโครงการ[[ผู้จัดการกลยุทธ์ ]])","v":{"v":25650,"d":"฿25,650.00"}},{"$f":"SUBTOTAL(109,รายละเอียดโครงการ[[ผู้เชี่ยวชาญด้านการออกแบบ ]])","v":{"v":28900,"d":"฿28,900.00"}},{"$f":"SUBTOTAL(109,รายละเอียดโครงการ[[เจ้าหน้าที่จัดกิจกรรม ]])","v":{"v":13400,"d":"฿13,400.00"}},{"$f":"SUBTOTAL(109,รายละเอียดโครงการ[[เจ้าหน้าที่ธุรการ ]])","v":{"v":9060,"d":"฿9,060.00"}}]
[null,"ชั่วโมงที่วางแผนไว้",{"$f":"C16/$C$12","v":{"v":300,"d":"300.00"}},{"$f":"D16/$C$12","v":{"v":290,"d":"290.00"}},{"v":133.33333333333334,"d":"133.33"},{"v":161.11111111111111,"d":"161.11"},{"v":73.33333333333333,"d":"73.33"},{"v":50,"d":"50.00"}]
[null,"ชั่วโมงจริง",{"$f":"C17/$C$12","v":{"v":302,"d":"302.00"}},{"$f":"D17/$C$12","v":{"v":286.3333333333333,"d":"286.33"}},{"$f":"E17/$C$12","v":{"v":142.5,"d":"142.50"}},{"$f":"F17/$C$12","v":{"v":160.55555555555554,"d":"160.56"}},{"$f":"G17/$C$12","v":{"v":74.44444444444444,"d":"74.44"}},{"$f":"H17/$C$12","v":{"v":50.333333333333336,"d":"50.33"}}]
[]
[]
[]
[]
[null,"แผนภูมิคอลัมน์ที่แสดงต้นทุนที่วางแผนไว้เปรียบเทียบกับต้นทุนจริง"]

{"sheet":"รายละเอียดโครงการ","index":2,"n_rows":10,"n_cols":23,"rows_kept":10}
["สร้างรายละเอียดโครงการในเวิร์กชีตนี้ ชื่อบริษัทจะอัปเดตในเซลล์ทางด้านขวาโดยอัตโนมัติ คำแนะนำที่มีประโยชน์จะอยู่ในเซลล์ในคอลัมน์นี้ ใช้ลูกศรลงเพื่อเริ่มต้นใช้งาน",{"$f":"พารามิเตอร์ของโครงการ!B1","v":"ชื่อบริษัท"}]
["ชื่อของเวิร์กชีตนี้จะอยู่ในเซลล์ด้านขวา","ตัวติดตามโครงการการจัดการกิจกรรม"]
["ข้อความที่เป็นความลับจะอยู่ในเซลล์ด้านขวา",{"$f":"พารามิเตอร์ของโครงการ!B3","v":"ชื่อบริษัทที่เป็นความลับ"}]
["ใส่ข้อมูลในตารางรายละเอียดโครงการโดยเริ่มจากเซลล์ด้านขวา\nข้อมูล\nเมื่อต้องการเพิ่มแถวในตารางทางด้านขวา ให้เลือกเซลล์ที่อยู่ขวาล่างสุดในเนื้อหาของตาราง (ไม่ใช่แถวผลรวม) แล้วกด Tab หรือกดแป้น SHIFT+F10 ที่คุณต้อการงแทรกแถว แล้วเลือกแทรก | แถวตารางด้านบน/ด้านล่าง\nตรวจสอบให้แน่ใจว่าได้ลบแถวที่ไม่ได้ใช้งานทั้งหมดแล้วเนื่องจาก PivotTable ผลรวมของโครงการจะใช้เซลล์ตารางทั้งหมด มิฉะนั้นจะให้ผลลัพธ์ที่มีข้อผิดพลาด","ชื่อโครงการ","ชนิดโครงการ","เวลาเริ่มต้นโดยประมาณ","เวลาเสร็จสิ้นโดยประมาณ","เวลาเริ่มตามจริง","เวลาสิ้นสุดตามจริง","งานโดยประมาณ","งานที่ทำไปแล้ว","ระยะเวลาโดยประมาณ","ระยะเวลาจริง","ผู้จัดการบัญชี","ผู้จัดการโครงการ","ผู้จัดการกลยุทธ์","ผู้เชี่ยวชาญด้านการออกแบบ","เจ้าหน้าที่จัดกิจกรรม","เจ้าหน้าที่ธุรการ","ผู้จัดการบัญชี ","ผู้จัดการโครงการ ","ผู้จัดการกลยุทธ์ ","ผู้เชี่ยวชาญด้านการออกแบบ ","เจ้าหน้าที่จัดกิจกรรม ","เจ้าหน้าที่ธุรการ "]
[null,"โครงการ 1","การพัฒนากลยุทธ์ของกิจกรรม",{"$f":"DATE(YEAR(TODAY()),6,9)","v":"2019-06-09"},{"$f":"DATE(YEAR(TODAY()),8,7)","v":"2019-08-07"},{"$f":"DATE(YEAR(TODAY()),6,29)","v":"2019-06-29"},{"$f":"DATE(YEAR(TODAY()),9,3)","v":"2019-09-03"},200,220,{"$f":"DAYS360(รายละเอียดโครงการ[[#This Row],[เวลาเริ่มต้นโดยประมาณ]],รายละเอียดโครงการ[[#This Row],[เวลาเสร็จสิ้นโดยประมาณ]],FALSE)","v":58},{"$f":"DAYS360(รายละเอียดโครงการ[[#This Row],[เวลาเริ่มตามจริง]],รายละเอียดโครงการ[[#This Row],[เวลาสิ้นสุดตามจริง]],FALSE)","v":64},{"$f":"INDEX(พารามิเตอร์[],MATCH(รายละเอียดโครงการ[[#This Row],[ชนิดโครงการ]],พารามิเตอร์[ชนิดโครงการ],0),MATCH(รายละเอียดโครงการ[[#Headers],[ผู้จัดการบัญชี]],พารามิเตอร์[#Headers],0))*INDEX(พารามิเตอร์ของโครงการ!$B$12:$H$12,1,MATCH(รายละเอียดโครงการ[[#Headers],[ผู้จัดการบัญชี]],พารามิเตอร์[#Headers],0))*รายละเอียดโครงการ[[#This Row],[งานโดยประมาณ]]","v":{"v":7200,"d":"฿7,200"}},{"$f":"INDEX(พารามิเตอร์[],MATCH(รายละเอียดโครงการ[[#This Row],[ชนิดโครงการ]],พารามิเตอร์[ชนิดโครงการ],0),MATCH(รายละเอียดโครงการ[[#Headers],[ผู้จัดการโครงการ]],พารามิเตอร์[#Headers],0))*INDEX(พารามิเตอร์ของโครงการ!$B$12:$H$12,1,MATCH(รายละเอียดโครงการ[[#Headers],[ผู้จัดการโครงการ]],พารามิเตอร์[#Headers],0))*รายละเอียดโครงการ[[#This Row],[งานโดยประมาณ]]","v":{"v":2400,"d":"฿2,400"}},{"$f":"INDEX(พารามิเตอร์[],MATCH(รายละเอียดโครงการ[[#This Row],[ชนิดโครงการ]],พารามิเตอร์[ชนิดโครงการ],0),MATCH(รายละเอียดโครงการ[[#Headers],[ผู้จัดการกลยุทธ์]],พารามิเตอร์[#Headers],0))*INDEX(พารามิเตอร์ของโครงการ!$B$12:$H$12,1,MATCH(รายละเอียดโครงการ[[#Headers],[ผู้จัดการกลยุทธ์]],พารามิเตอร์[#Headers],0))*รายละเอียดโครงการ[[#This Row],[งานโดยประมาณ]]","v":{"v":18000,"d":"฿18,000"}},{"$f":"INDEX(พารามิเตอร์[],MATCH(รายละเอียดโครงการ[[#This Row],[ชนิดโครงการ]],พารามิเตอร์[ชนิดโครงการ],0),MATCH(รายละเอียดโครงการ[[#Headers],[ผู้เชี่ยวชาญด้านการออกแบบ]],พารามิเตอร์[#Headers],0))*INDEX(พารามิเตอร์ของโครงการ!$B$12:$H$12,1,MATCH(รายละเอียดโครงการ[[#Headers],[ผู้เชี่ยวชาญด้านการออกแบบ]],พารามิเตอร์[#Headers],0))*รายละเอียดโครงการ[[#This Row],[งานโดยประมาณ]]","v":{"v":0,"d":"฿0"}},{"$f":"INDEX(พารามิเตอร์[],MATCH(รายละเอียดโครงการ[[#This Row],[ชนิดโครงการ]],พารามิเตอร์[ชนิดโครงการ],0),MATCH(รายละเอียดโครงการ[[#Headers],[เจ้าหน้าที่จัดกิจกรรม]],พารามิเตอร์[#Headers],0))*INDEX(พารามิเตอร์ของโครงการ!$B$12:$H$12,1,MATCH(รายละเอียดโครงการ[[#Headers],[เจ้าหน้าที่จัดกิจกรรม]],พารามิเตอร์[#Headers],0))*รายละเอียดโครงการ[[#This Row],[งานโดยประมาณ]]","v":{"v":0,"d":"฿0"}},{"$f":"INDEX(พารามิเตอร์[],MATCH(รายละเอียดโครงการ[[#This Row],[ชนิดโครงการ]],พารามิเตอร์[ชนิดโครงการ],0),MATCH(รายละเอียดโครงการ[[#Headers],[เจ้าหน้าที่ธุรการ]],พารามิเตอร์[#Headers],0))*INDEX(พารามิเตอร์ของโครงการ!$B$12:$H$12,1,MATCH(รายละเอียดโครงการ[[#Headers],[เจ้าหน้าที่ธุรการ]],พารามิเตอร์[#Headers],0))*รายละเอียดโครงการ[[#This Row],[งานโดยประมาณ]]","v":{"v":1200,"d":"฿1,200"}},{"$f":"INDEX(พารามิเตอร์[],MATCH(รายละเอียดโครงการ[[#This Row],[ชนิดโครงการ]],พารามิเตอร์[ชนิดโครงการ],0),MATCH(รายละเอียดโครงการ[[#Headers],[ผู้จัดการบัญชี]],พารามิเตอร์[#Headers],0))*INDEX(พารามิเตอร์ของโครงการ!$B$12:$H$12,1,MATCH(รายละเอียดโครงการ[[#Headers],[ผู้จัดการบัญชี]],พารามิเตอร์[#Headers],0))*รายละเอียดโครงการ[[#This Row],[งานที่ทำไปแล้ว]]","v":{"v":7920,"d":"฿7,920"}},{"$f":"INDEX(พารามิเตอร์[],MATCH(รายละเอียดโครงการ[[#This Row],[ชนิดโครงการ]],พารามิเตอร์[ชนิดโครงการ],0),MATCH(รายละเอียดโครงการ[[#Headers],[ผู้จัดการโครงการ]],พารามิเตอร์[#Headers],0))*INDEX(พารามิเตอร์ของโครงการ!$B$12:$H$12,1,MATCH(รายละเอียดโครงการ[[#Headers],[ผู้จัดการโครงการ]],พารามิเตอร์[#Headers],0))*รายละเอียดโครงการ[[#This Row],[งานที่ทำไปแล้ว]]","v":{"v":2640,"d":"฿2,640"}},{"$f":"INDEX(พารามิเตอร์[],MATCH(รายละเอียดโครงการ[[#This Row],[ชนิดโครงการ]],พารามิเตอร์[ชนิดโครงการ],0),MATCH(รายละเอียดโครงการ[[#Headers],[ผู้จัดการกลยุทธ์]],พารามิเตอร์[#Headers],0))*INDEX(พารามิเตอร์ของโครงการ!$B$12:$H$12,1,MATCH(รายละเอียดโครงการ[[#Headers],[ผู้จัดการกลยุทธ์]],พารามิเตอร์[#Headers],0))*รายละเอียดโครงการ[[#This Row],[งานที่ทำไปแล้ว]]","v":{"v":19800,"d":"฿19,800"}},{"$f":"INDEX(พารามิเตอร์[],MATCH(รายละเอียดโครงการ[[#This Row],[ชนิดโครงการ]],พารามิเตอร์[ชนิดโครงการ],0),MATCH(รายละเอียดโครงการ[[#Headers],[ผู้เชี่ยวชาญด้านการออกแบบ]],พารามิเตอร์[#Headers],0))*INDEX(พารามิเตอร์ของโครงการ!$B$12:$H$12,1,MATCH(รายละเอียดโครงการ[[#Headers],[ผู้เชี่ยวชาญด้านการออกแบบ]],พารามิเตอร์[#Headers],0))*รายละเอียดโครงการ[[#This Row],[งานที่ทำไปแล้ว]]","v":{"v":0,"d":"฿0"}},{"$f":"INDEX(พารามิเตอร์[],MATCH(รายละเอียดโครงการ[[#This Row],[ชนิดโครงการ]],พารามิเตอร์[ชนิดโครงการ],0),MATCH(รายละเอียดโครงการ[[#Headers],[เจ้าหน้าที่จัดกิจกรรม]],พารามิเตอร์[#Headers],0))*INDEX(พารามิเตอร์ของโครงการ!$B$12:$H$12,1,MATCH(รายละเอียดโครงการ[[#Headers],[เจ้าหน้าที่จัดกิจกรรม]],พารามิเตอร์[#Headers],0))*รายละเอียดโครงการ[[#This Row],[งานที่ทำไปแล้ว]]","v":{"v":0,"d":"฿0"}},{"$f":"INDEX(พารามิเตอร์[],MATCH(รายละเอียดโครงการ[[#This Row],[ชนิดโครงการ]],พารามิเตอร์[ชนิดโครงการ],0),MATCH(รายละเอียดโครงการ[[#Headers],[เจ้าหน้าที่ธุรการ]],พารามิเตอร์[#Headers],0))*INDEX(พารามิเตอร์ของโครงการ!$B$12:$H$12,1,MATCH(รายละเอียดโครงการ[[#Headers],[เจ้าหน้าที่ธุรการ]],พารามิเตอร์[#Headers],0))*รายละเอียดโครงการ[[#This Row],[งานที่ทำไปแล้ว]]","v":{"v":1320,"d":"฿1,320"}}]
[null,"โครงการ 2","การวางแผนกิจกรรม",{"$f":"DATE(YEAR(TODAY())+1,6,25)","v":"2020-06-25"},{"$f":"DATE(YEAR(TODAY())+1,7,27)","v":"2020-07-27"},{"$f":"DATE(YEAR(TODAY()),7,15)","v":"2019-07-15"},{"$f":"DATE(YEAR(TODAY())+1,8,25)","v":"2020-08-25"},400,390,{"$f":"DAYS360(รายละเอียดโครงการ[[#This Row],[เวลาเริ่มต้นโดยประมาณ]],รายละเอียดโครงการ[[#This Row],[เวลาเสร็จสิ้นโดยประมาณ]],FALSE)","v":32},{"$f":"DAYS360(รายละเอียดโครงการ[[#This Row],[เวลาเริ่มตามจริง]],รายละเอียดโครงการ[[#This Row],[เวลาสิ้นสุดตามจริง]],FALSE)","v":400},{"$f":"INDEX(พารามิเตอร์[],MATCH(รายละเอียดโครงการ[[#This Row],[ชนิดโครงการ]],พารามิเตอร์[ชนิดโครงการ],0),MATCH(รายละเอียดโครงการ[[#Headers],[ผู้จัดการบัญชี]],พารามิเตอร์[#Headers],0))*INDEX(พารามิเตอร์ของโครงการ!$B$12:$H$12,1,MATCH(รายละเอียดโครงการ[[#Headers],[ผู้จัดการบัญชี]],พารามิเตอร์[#Headers],0))*รายละเอียดโครงการ[[#This Row],[งานโดยประมาณ]]","v":{"v":14400,"d":"฿14,400"}},{"$f":"INDEX(พารามิเตอร์[],MATCH(รายละเอียดโครงการ[[#This Row],[ชนิดโครงการ]],พารามิเตอร์[ชนิดโครงการ],0),MATCH(รายละเอียดโครงการ[[#Headers],[ผู้จัดการโครงการ]],พารามิเตอร์[#Headers],0))*INDEX(พารามิเตอร์ของโครงการ!$B$12:$H$12,1,MATCH(รายละเอียดโครงการ[[#Headers],[ผู้จัดการโครงการ]],พารามิเตอร์[#Headers],0))*รายละเอียดโครงการ[[#This Row],[งานโดยประมาณ]]","v":{"v":24000,"d":"฿24,000"}},{"$f":"INDEX(พารามิเตอร์[],MATCH(รายละเอียดโครงการ[[#This Row],[ชนิดโครงการ]],พารามิเตอร์[ชนิดโครงการ],0),MATCH(รายละเอียดโครงการ[[#Headers],[ผู้จัดการกลยุทธ์]],พารามิเตอร์[#Headers],0))*INDEX(พารามิเตอร์ของโครงการ!$B$12:$H$12,1,MATCH(รายละเอียดโครงการ[[#Headers],[ผู้จัดการกลยุทธ์]],พารามิเตอร์[#Headers],0))*รายละเอียดโครงการ[[#This Row],[งานโดยประมาณ]]","v":{"v":6000,"d":"฿6,000"}},{"$f":"INDEX(พารามิเตอร์[],MATCH(รายละเอียดโครงการ[[#This Row],[ชนิดโครงการ]],พารามิเตอร์[ชนิดโครงการ],0),MATCH(รายละเอียดโครงการ[[#Headers],[ผู้เชี่ยวชาญด้านการออกแบบ]],พารามิเตอร์[#Headers],0))*INDEX(พารามิเตอร์ของโครงการ!$B$12:$H$12,1,MATCH(รายละเอียดโครงการ[[#Headers],[ผู้เชี่ยวชาญด้านการออกแบบ]],พารามิเตอร์[#Headers],0))*รายละเอียดโครงการ[[#This Row],[งานโดยประมาณ]]","v":{"v":4000,"d":"฿4,000"}},{"$f":"INDEX(พารามิเตอร์[],MATCH(รายละเอียดโครงการ[[#This Row],[ชนิดโครงการ]],พารามิเตอร์[ชนิดโครงการ],0),MATCH(รายละเอียดโครงการ[[#Headers],[เจ้าหน้าที่จัดกิจกรรม]],พารามิเตอร์[#Headers],0))*INDEX(พารามิเตอร์ของโครงการ!$B$12:$H$12,1,MATCH(รายละเอียดโครงการ[[#Headers],[เจ้าหน้าที่จัดกิจกรรม]],พารามิเตอร์[#Headers],0))*รายละเอียดโครงการ[[#This Row],[งานโดยประมาณ]]","v":{"v":0,"d":"฿0"}},{"$f":"INDEX(พารามิเตอร์[],MATCH(รายละเอียดโครงการ[[#This Row],[ชนิดโครงการ]],พารามิเตอร์[ชนิดโครงการ],0),MATCH(รายละเอียดโครงการ[[#Headers],[เจ้าหน้าที่ธุรการ]],พารามิเตอร์[#Headers],0))*INDEX(พารามิเตอร์ของโครงการ!$B$12:$H$12,1,MATCH(รายละเอียดโครงการ[[#Headers],[เจ้าหน้าที่ธุรการ]],พารามิเตอร์[#Headers],0))*รายละเอียดโครงการ[[#This Row],[งานโดยประมาณ]]","v":{"v":2400,"d":"฿2,400"}},{"$f":"INDEX(พารามิเตอร์[],MATCH(รายละเอียดโครงการ[[#This Row],[ชนิดโครงการ]],พารามิเตอร์[ชนิดโครงการ],0),MATCH(รายละเอียดโครงการ[[#Headers],[ผู้จัดการบัญชี]],พารามิเตอร์[#Headers],0))*INDEX(พารามิเตอร์ของโครงการ!$B$12:$H$12,1,MATCH(รายละเอียดโครงการ[[#Headers],[ผู้จัดการบัญชี]],พารามิเตอร์[#Headers],0))*รายละเอียดโครงการ[[#This Row],[งานที่ทำไปแล้ว]]","v":{"v":14040,"d":"฿14,040"}},{"$f":"INDEX(พารามิเตอร์[],MATCH(รายละเอียดโครงการ[[#This Row],[ชนิดโครงการ]],พารามิเตอร์[ชนิดโครงการ],0),MATCH(รายละเอียดโครงการ[[#Headers],[ผู้จัดการโครงการ]],พารามิเตอร์[#Headers],0))*INDEX(พารามิเตอร์ของโครงการ!$B$12:$H$12,1,MATCH(รายละเอียดโครงการ[[#Headers],[ผู้จัดการโครงการ]],พารามิเตอร์[#Headers],0))*รายละเอียดโครงการ[[#This Row],[งานที่ทำไปแล้ว]]","v":{"v":23400,"d":"฿23,400"}},{"$f":"INDEX(พารามิเตอร์[],MATCH(รายละเอียดโครงการ[[#This Row],[ชนิดโครงการ]],พารามิเตอร์[ชนิดโครงการ],0),MATCH(รายละเอียดโครงการ[[#Headers],[ผู้จัดการกลยุทธ์]],พารามิเตอร์[#Headers],0))*INDEX(พารามิเตอร์ของโครงการ!$B$12:$H$12,1,MATCH(รายละเอียดโครงการ[[#Headers],[ผู้จัดการกลยุทธ์]],พารามิเตอร์[#Headers],0))*รายละเอียดโครงการ[[#This Row],[งานที่ทำไปแล้ว]]","v":{"v":5850,"d":"฿5,850"}},{"$f":"INDEX(พารามิเตอร์[],MATCH(รายละเอียดโครงการ[[#This Row],[ชนิดโครงการ]],พารามิเตอร์[ชนิดโครงการ],0),MATCH(รายละเอียดโครงการ[[#Headers],[ผู้เชี่ยวชาญด้านการออกแบบ]],พารามิเตอร์[#Headers],0))*INDEX(พารามิเตอร์ของโครงการ!$B$12:$H$12,1,MATCH(รายละเอียดโครงการ[[#Headers],[ผู้เชี่ยวชาญด้านการออกแบบ]],พารามิเตอร์[#Headers],0))*รายละเอียดโครงการ[[#This Row],[งานที่ทำไปแล้ว]]","v":{"v":3900,"d":"฿3,900"}},{"$f":"INDEX(พารามิเตอร์[],MATCH(รายละเอียดโครงการ[[#This Row],[ชนิดโครงการ]],พารามิเตอร์[ชนิดโครงการ],0),MATCH(รายละเอียดโครงการ[[#Headers],[เจ้าหน้าที่จัดกิจกรรม]],พารามิเตอร์[#Headers],0))*INDEX(พารามิเตอร์ของโครงการ!$B$12:$H$12,1,MATCH(รายละเอียดโครงการ[[#Headers],[เจ้าหน้าที่จัดกิจกรรม]],พารามิเตอร์[#Headers],0))*รายละเอียดโครงการ[[#This Row],[งานที่ทำไปแล้ว]]","v":{"v":0,"d":"฿0"}},{"$f":"INDEX(พารามิเตอร์[],MATCH(รายละเอียดโครงการ[[#This Row],[ชนิดโครงการ]],พารามิเตอร์[ชนิดโครงการ],0),MATCH(รายละเอียดโครงการ[[#Headers],[เจ้าหน้าที่ธุรการ]],พารามิเตอร์[#Headers],0))*INDEX(พารามิเตอร์ของโครงการ!$B$12:$H$12,1,MATCH(รายละเอียดโครงการ[[#Headers],[เจ้าหน้าที่ธุรการ]],พารามิเตอร์[#Headers],0))*รายละเอียดโครงการ[[#This Row],[งานที่ทำไปแล้ว]]","v":{"v":2340,"d":"฿2,340"}}]
[null,"โครงการ 3","การออกแบบกิจกรรม",{"$f":"DATE(YEAR(TODAY())+2,7,12)","v":"2021-07-12"},{"$f":"DATE(YEAR(TODAY())+2,9,19)","v":"2021-09-19"},{"$f":"DATE(YEAR(TODAY())+6,8,7)","v":"2025-08-07"},{"$f":"DATE(YEAR(TODAY())+6,10,10)","v":"2025-10-10"},500,500,{"$f":"DAYS360(รายละเอียดโครงการ[[#This Row],[เวลาเริ่มต้นโดยประมาณ]],รายละเอียดโครงการ[[#This Row],[เวลาเสร็จสิ้นโดยประมาณ]],FALSE)","v":67},{"$f":"DAYS360(รายละเอียดโครงการ[[#This Row],[เวลาเริ่มตามจริง]],รายละเอียดโครงการ[[#This Row],[เวลาสิ้นสุดตามจริง]],FALSE)","v":63},{"$f":"INDEX(พารามิเตอร์[],MATCH(รายละเอียดโครงการ[[#This Row],[ชนิดโครงการ]],พารามิเตอร์[ชนิดโครงการ],0),MATCH(รายละเอียดโครงการ[[#Headers],[ผู้จัดการบัญชี]],พารามิเตอร์[#Headers],0))*INDEX(พารามิเตอร์ของโครงการ!$B$12:$H$12,1,MATCH(รายละเอียดโครงการ[[#Headers],[ผู้จัดการบัญชี]],พารามิเตอร์[#Headers],0))*รายละเอียดโครงการ[[#This Row],[งานโดยประมาณ]]","v":{"v":18000,"d":"฿18,000"}},{"$f":"INDEX(พารามิเตอร์[],MATCH(รายละเอียดโครงการ[[#This Row],[ชนิดโครงการ]],พารามิเตอร์[ชนิดโครงการ],0),MATCH(รายละเอียดโครงการ[[#Headers],[ผู้จัดการโครงการ]],พารามิเตอร์[#Headers],0))*INDEX(พารามิเตอร์ของโครงการ!$B$12:$H$12,1,MATCH(รายละเอียดโครงการ[[#Headers],[ผู้จัดการโครงการ]],พารามิเตอร์[#Headers],0))*รายละเอียดโครงการ[[#This Row],[งานโดยประมาณ]]","v":{"v":12000,"d":"฿12,000"}},{"$f":"INDEX(พารามิเตอร์[],MATCH(รายละเอียดโครงการ[[#This Row],[ชนิดโครงการ]],พารามิเตอร์[ชนิดโครงการ],0),MATCH(รายละเอียดโครงการ[[#Headers],[ผู้จัดการกลยุทธ์]],พารามิเตอร์[#Headers],0))*INDEX(พารามิเตอร์ของโครงการ!$B$12:$H$12,1,MATCH(รายละเอียดโครงการ[[#Headers],[ผู้จัดการกลยุทธ์]],พารามิเตอร์[#Headers],0))*รายละเอียดโครงการ[[#This Row],[งานโดยประมาณ]]","v":{"v":0,"d":"฿0"}},{"$f":"INDEX(พารามิเตอร์[],MATCH(รายละเอียดโครงการ[[#This Row],[ชนิดโครงการ]],พารามิเตอร์[ชนิดโครงการ],0),MATCH(รายละเอียดโครงการ[[#Headers],[ผู้เชี่ยวชาญด้านการออกแบบ]],พารามิเตอร์[#Headers],0))*INDEX(พารามิเตอร์ของโครงการ!$B$12:$H$12,1,MATCH(รายละเอียดโครงการ[[#Headers],[ผู้เชี่ยวชาญด้านการออกแบบ]],พารามิเตอร์[#Headers],0))*รายละเอียดโครงการ[[#This Row],[งานโดยประมาณ]]","v":{"v":25000,"d":"฿25,000"}},{"$f":"INDEX(พารามิเตอร์[],MATCH(รายละเอียดโครงการ[[#This Row],[ชนิดโครงการ]],พารามิเตอร์[ชนิดโครงการ],0),MATCH(รายละเอียดโครงการ[[#Headers],[เจ้าหน้าที่จัดกิจกรรม]],พารามิเตอร์[#Headers],0))*INDEX(พารามิเตอร์ของโครงการ!$B$12:$H$12,1,MATCH(รายละเอียดโครงการ[[#Headers],[เจ้าหน้าที่จัดกิจกรรม]],พารามิเตอร์[#Headers],0))*รายละเอียดโครงการ[[#This Row],[งานโดยประมาณ]]","v":{"v":0,"d":"฿0"}},{"$f":"INDEX(พารามิเตอร์[],MATCH(รายละเอียดโครงการ[[#This Row],[ชนิดโครงการ]],พารามิเตอร์[ชนิดโครงการ],0),MATCH(รายละเอียดโครงการ[[#Headers],[เจ้าหน้าที่ธุรการ]],พารามิเตอร์[#Headers],0))*INDEX(พารามิเตอร์ของโครงการ!$B$12:$H$12,1,MATCH(รายละเอียดโครงการ[[#Headers],[เจ้าหน้าที่ธุรการ]],พารามิเตอร์[#Headers],0))*รายละเอียดโครงการ[[#This Row],[งานโดยประมาณ]]","v":{"v":3000,"d":"฿3,000"}},{"$f":"INDEX(พารามิเตอร์[],MATCH(รายละเอียดโครงการ[[#This Row],[ชนิดโครงการ]],พารามิเตอร์[ชนิดโครงการ],0),MATCH(รายละเอียดโครงการ[[#Headers],[ผู้จัดการบัญชี]],พารามิเตอร์[#Headers],0))*INDEX(พารามิเตอร์ของโครงการ!$B$12:$H$12,1,MATCH(รายละเอียดโครงการ[[#Headers],[ผู้จัดการบัญชี]],พารามิเตอร์[#Headers],0))*รายละเอียดโครงการ[[#This Row],[งานที่ทำไปแล้ว]]","v":{"v":18000,"d":"฿18,000"}},{"$f":"INDEX(พารามิเตอร์[],MATCH(รายละเอียดโครงการ[[#This Row],[ชนิดโครงการ]],พารามิเตอร์[ชนิดโครงการ],0),MATCH(รายละเอียดโครงการ[[#Headers],[ผู้จัดการโครงการ]],พารามิเตอร์[#Headers],0))*INDEX(พารามิเตอร์ของโครงการ!$B$12:$H$12,1,MATCH(รายละเอียดโครงการ[[#Headers],[ผู้จัดการโครงการ]],พารามิเตอร์[#Headers],0))*รายละเอียดโครงการ[[#This Row],[งานที่ทำไปแล้ว]]","v":{"v":12000,"d":"฿12,000"}},{"$f":"INDEX(พารามิเตอร์[],MATCH(รายละเอียดโครงการ[[#This Row],[ชนิดโครงการ]],พารามิเตอร์[ชนิดโครงการ],0),MATCH(รายละเอียดโครงการ[[#Headers],[ผู้จัดการกลยุทธ์]],พารามิเตอร์[#Headers],0))*INDEX(พารามิเตอร์ของโครงการ!$B$12:$H$12,1,MATCH(รายละเอียดโครงการ[[#Headers],[ผู้จัดการกลยุทธ์]],พารามิเตอร์[#Headers],0))*รายละเอียดโครงการ[[#This Row],[งานที่ทำไปแล้ว]]","v":{"v":0,"d":"฿0"}},{"$f":"INDEX(พารามิเตอร์[],MATCH(รายละเอียดโครงการ[[#This Row],[ชนิดโครงการ]],พารามิเตอร์[ชนิดโครงการ],0),MATCH(รายละเอียดโครงการ[[#Headers],[ผู้เชี่ยวชาญด้านการออกแบบ]],พารามิเตอร์[#Headers],0))*INDEX(พารามิเตอร์ของโครงการ!$B$12:$H$12,1,MATCH(รายละเอียดโครงการ[[#Headers],[ผู้เชี่ยวชาญด้านการออกแบบ]],พารามิเตอร์[#Headers],0))*รายละเอียดโครงการ[[#This Row],[งานที่ทำไปแล้ว]]","v":{"v":25000,"d":"฿25,000"}},{"$f":"INDEX(พารามิเตอร์[],MATCH(รายละเอียดโครงการ[[#This Row],[ชนิดโครงการ]],พารามิเตอร์[ชนิดโครงการ],0),MATCH(รายละเอียดโครงการ[[#Headers],[เจ้าหน้าที่จัดกิจกรรม]],พารามิเตอร์[#Headers],0))*INDEX(พารามิเตอร์ของโครงการ!$B$12:$H$12,1,MATCH(รายละเอียดโครงการ[[#Headers],[เจ้าหน้าที่จัดกิจกรรม]],พารามิเตอร์[#Headers],0))*รายละเอียดโครงการ[[#This Row],[งานที่ทำไปแล้ว]]","v":{"v":0,"d":"฿0"}},{"$f":"INDEX(พารามิเตอร์[],MATCH(รายละเอียดโครงการ[[#This Row],[ชนิดโครงการ]],พารามิเตอร์[ชนิดโครงการ],0),MATCH(รายละเอียดโครงการ[[#Headers],[เจ้าหน้าที่ธุรการ]],พารามิเตอร์[#Headers],0))*INDEX(พารามิเตอร์ของโครงการ!$B$12:$H$12,1,MATCH(รายละเอียดโครงการ[[#Headers],[เจ้าหน้าที่ธุรการ]],พารามิเตอร์[#Headers],0))*รายละเอียดโครงการ[[#This Row],[งานที่ทำไปแล้ว]]","v":{"v":3000,"d":"฿3,000"}}]
[null,"โครงการ 4","ลอจิสติกส์ของกิจกรรม",{"$f":"DATE(YEAR(TODAY())+3,7,30)","v":"2022-07-30"},{"$f":"DATE(YEAR(TODAY())+3,9,28)","v":"2022-09-28"},{"$f":"DATE(YEAR(TODAY())+3,9,14)","v":"2022-09-14"},{"$f":"DATE(YEAR(TODAY())+3,11,13)","v":"2022-11-13"},150,145,{"$f":"DAYS360(รายละเอียดโครงการ[[#This Row],[เวลาเริ่มต้นโดยประมาณ]],รายละเอียดโครงการ[[#This Row],[เวลาเสร็จสิ้นโดยประมาณ]],FALSE)","v":58},{"$f":"DAYS360(รายละเอียดโครงการ[[#This Row],[เวลาเริ่มตามจริง]],รายละเอียดโครงการ[[#This Row],[เวลาสิ้นสุดตามจริง]],FALSE)","v":59},{"$f":"INDEX(พารามิเตอร์[],MATCH(รายละเอียดโครงการ[[#This Row],[ชนิดโครงการ]],พารามิเตอร์[ชนิดโครงการ],0),MATCH(รายละเอียดโครงการ[[#Headers],[ผู้จัดการบัญชี]],พารามิเตอร์[#Headers],0))*INDEX(พารามิเตอร์ของโครงการ!$B$12:$H$12,1,MATCH(รายละเอียดโครงการ[[#Headers],[ผู้จัดการบัญชี]],พารามิเตอร์[#Headers],0))*รายละเอียดโครงการ[[#This Row],[งานโดยประมาณ]]","v":{"v":5400,"d":"฿5,400"}},{"$f":"INDEX(พารามิเตอร์[],MATCH(รายละเอียดโครงการ[[#This Row],[ชนิดโครงการ]],พารามิเตอร์[ชนิดโครงการ],0),MATCH(รายละเอียดโครงการ[[#Headers],[ผู้จัดการโครงการ]],พารามิเตอร์[#Headers],0))*INDEX(พารามิเตอร์ของโครงการ!$B$12:$H$12,1,MATCH(รายละเอียดโครงการ[[#Headers],[ผู้จัดการโครงการ]],พารามิเตอร์[#Headers],0))*รายละเอียดโครงการ[[#This Row],[งานโดยประมาณ]]","v":{"v":10800,"d":"฿10,800"}},{"$f":"INDEX(พารามิเตอร์[],MATCH(รายละเอียดโครงการ[[#This Row],[ชนิดโครงการ]],พารามิเตอร์[ชนิดโครงการ],0),MATCH(รายละเอียดโครงการ[[#Headers],[ผู้จัดการกลยุทธ์]],พารามิเตอร์[#Headers],0))*INDEX(พารามิเตอร์ของโครงการ!$B$12:$H$12,1,MATCH(รายละเอียดโครงการ[[#Headers],[ผู้จัดการกลยุทธ์]],พารามิเตอร์[#Headers],0))*รายละเอียดโครงการ[[#This Row],[งานโดยประมาณ]]","v":{"v":0,"d":"฿0"}},{"$f":"INDEX(พารามิเตอร์[],MATCH(รายละเอียดโครงการ[[#This Row],[ชนิดโครงการ]],พารามิเตอร์[ชนิดโครงการ],0),MATCH(รายละเอียดโครงการ[[#Headers],[ผู้เชี่ยวชาญด้านการออกแบบ]],พารามิเตอร์[#Headers],0))*INDEX(พารามิเตอร์ของโครงการ!$B$12:$H$12,1,MATCH(รายละเอียดโครงการ[[#Headers],[ผู้เชี่ยวชาญด้านการออกแบบ]],พารามิเตอร์[#Headers],0))*รายละเอียดโครงการ[[#This Row],[งานโดยประมาณ]]","v":{"v":0,"d":"฿0"}},{"$f":"INDEX(พารามิเตอร์[],MATCH(รายละเอียดโครงการ[[#This Row],[ชนิดโครงการ]],พารามิเตอร์[ชนิดโครงการ],0),MATCH(รายละเอียดโครงการ[[#Headers],[เจ้าหน้าที่จัดกิจกรรม]],พารามิเตอร์[#Headers],0))*INDEX(พารามิเตอร์ของโครงการ!$B$12:$H$12,1,MATCH(รายละเอียดโครงการ[[#Headers],[เจ้าหน้าที่จัดกิจกรรม]],พารามิเตอร์[#Headers],0))*รายละเอียดโครงการ[[#This Row],[งานโดยประมาณ]]","v":{"v":1200,"d":"฿1,200"}},{"$f":"INDEX(พารามิเตอร์[],MATCH(รายละเอียดโครงการ[[#This Row],[ชนิดโครงการ]],พารามิเตอร์[ชนิดโครงการ],0),MATCH(รายละเอียดโครงการ[[#Headers],[เจ้าหน้าที่ธุรการ]],พารามิเตอร์[#Headers],0))*INDEX(พารามิเตอร์ของโครงการ!$B$12:$H$12,1,MATCH(รายละเอียดโครงการ[[#Headers],[เจ้าหน้าที่ธุรการ]],พารามิเตอร์[#Headers],0))*รายละเอียดโครงการ[[#This Row],[งานโดยประมาณ]]","v":{"v":900,"d":"฿900"}},{"$f":"INDEX(พารามิเตอร์[],MATCH(รายละเอียดโครงการ[[#This Row],[ชนิดโครงการ]],พารามิเตอร์[ชนิดโครงการ],0),MATCH(รายละเอียดโครงการ[[#Headers],[ผู้จัดการบัญชี]],พารามิเตอร์[#Headers],0))*INDEX(พารามิเตอร์ของโครงการ!$B$12:$H$12,1,MATCH(รายละเอียดโครงการ[[#Headers],[ผู้จัดการบัญชี]],พารามิเตอร์[#Headers],0))*รายละเอียดโครงการ[[#This Row],[งานที่ทำไปแล้ว]]","v":{"v":5220,"d":"฿5,220"}},{"$f":"INDEX(พารามิเตอร์[],MATCH(รายละเอียดโครงการ[[#This Row],[ชนิดโครงการ]],พารามิเตอร์[ชนิดโครงการ],0),MATCH(รายละเอียดโครงการ[[#Headers],[ผู้จัดการโครงการ]],พารามิเตอร์[#Headers],0))*INDEX(พารามิเตอร์ของโครงการ!$B$12:$H$12,1,MATCH(รายละเอียดโครงการ[[#Headers],[ผู้จัดการโครงการ]],พารามิเตอร์[#Headers],0))*รายละเอียดโครงการ[[#This Row],[งานที่ทำไปแล้ว]]","v":{"v":10440,"d":"฿10,440"}},{"$f":"INDEX(พารามิเตอร์[],MATCH(รายละเอียดโครงการ[[#This Row],[ชนิดโครงการ]],พารามิเตอร์[ชนิดโครงการ],0),MATCH(รายละเอียดโครงการ[[#Headers],[ผู้จัดการกลยุทธ์]],พารามิเตอร์[#Headers],0))*INDEX(พารามิเตอร์ของโครงการ!$B$12:$H$12,1,MATCH(รายละเอียดโครงการ[[#Headers],[ผู้จัดการกลยุทธ์]],พารามิเตอร์[#Headers],0))*รายละเอียดโครงการ[[#This Row],[งานที่ทำไปแล้ว]]","v":{"v":0,"d":"฿0"}},{"$f":"INDEX(พารามิเตอร์[],MATCH(รายละเอียดโครงการ[[#This Row],[ชนิดโครงการ]],พารามิเตอร์[ชนิดโครงการ],0),MATCH(รายละเอียดโครงการ[[#Headers],[ผู้เชี่ยวชาญด้านการออกแบบ]],พารามิเตอร์[#Headers],0))*INDEX(พารามิเตอร์ของโครงการ!$B$12:$H$12,1,MATCH(รายละเอียดโครงการ[[#Headers],[ผู้เชี่ยวชาญด้านการออกแบบ]],พารามิเตอร์[#Headers],0))*รายละเอียดโครงการ[[#This Row],[งานที่ทำไปแล้ว]]","v":{"v":0,"d":"฿0"}},{"$f":"INDEX(พารามิเตอร์[],MATCH(รายละเอียดโครงการ[[#This Row],[ชนิดโครงการ]],พารามิเตอร์[ชนิดโครงการ],0),MATCH(รายละเอียดโครงการ[[#Headers],[เจ้าหน้าที่จัดกิจกรรม]],พารามิเตอร์[#Headers],0))*INDEX(พารามิเตอร์ของโครงการ!$B$12:$H$12,1,MATCH(รายละเอียดโครงการ[[#Headers],[เจ้าหน้าที่จัดกิจกรรม]],พารามิเตอร์[#Headers],0))*รายละเอียดโครงการ[[#This Row],[งานที่ทำไปแล้ว]]","v":{"v":1160,"d":"฿1,160"}},{"$f":"INDEX(พารามิเตอร์[],MATCH(รายละเอียดโครงการ[[#This Row],[ชนิดโครงการ]],พารามิเตอร์[ชนิดโครงการ],0),MATCH(รายละเอียดโครงการ[[#Headers],[เจ้าหน้าที่ธุรการ]],พารามิเตอร์[#Headers],0))*INDEX(พารามิเตอร์ของโครงการ!$B$12:$H$12,1,MATCH(รายละเอียดโครงการ[[#Headers],[เจ้าหน้าที่ธุรการ]],พารามิเตอร์[#Headers],0))*รายละเอียดโครงการ[[#This Row],[งานที่ทำไปแล้ว]]","v":{"v":870,"d":"฿870"}}]
[null,"โครงการ 5","การจัดหาเจ้าหน้าที่จัดกิจกรรม",{"$f":"DATE(YEAR(TODAY())+4,8,11)","v":"2023-08-11"},{"$f":"DATE(YEAR(TODAY())+4,8,21)","v":"2023-08-21"},{"$f":"DATE(YEAR(TODAY())+4,9,14)","v":"2023-09-14"},{"$f":"DATE(YEAR(TODAY())+4,9,25)","v":"2023-09-25"},250,255,{"$f":"DAYS360(รายละเอียดโครงการ[[#This Row],[เวลาเริ่มต้นโดยประมาณ]],รายละเอียดโครงการ[[#This Row],[เวลาเสร็จสิ้นโดยประมาณ]],FALSE)","v":10},{"$f":"DAYS360(รายละเอียดโครงการ[[#This Row],[เวลาเริ่มตามจริง]],รายละเอียดโครงการ[[#This Row],[เวลาสิ้นสุดตามจริง]],FALSE)","v":11},{"$f":"INDEX(พารามิเตอร์[],MATCH(รายละเอียดโครงการ[[#This Row],[ชนิดโครงการ]],พารามิเตอร์[ชนิดโครงการ],0),MATCH(รายละเอียดโครงการ[[#Headers],[ผู้จัดการบัญชี]],พารามิเตอร์[#Headers],0))*INDEX(พารามิเตอร์ของโครงการ!$B$12:$H$12,1,MATCH(รายละเอียดโครงการ[[#Headers],[ผู้จัดการบัญชี]],พารามิเตอร์[#Headers],0))*รายละเอียดโครงการ[[#This Row],[งานโดยประมาณ]]","v":{"v":9000,"d":"฿9,000"}},{"$f":"INDEX(พารามิเตอร์[],MATCH(รายละเอียดโครงการ[[#This Row],[ชนิดโครงการ]],พารามิเตอร์[ชนิดโครงการ],0),MATCH(รายละเอียดโครงการ[[#Headers],[ผู้จัดการโครงการ]],พารามิเตอร์[#Headers],0))*INDEX(พารามิเตอร์ของโครงการ!$B$12:$H$12,1,MATCH(รายละเอียดโครงการ[[#Headers],[ผู้จัดการโครงการ]],พารามิเตอร์[#Headers],0))*รายละเอียดโครงการ[[#This Row],[งานโดยประมาณ]]","v":{"v":3000,"d":"฿3,000"}},{"$f":"INDEX(พารามิเตอร์[],MATCH(รายละเอียดโครงการ[[#This Row],[ชนิดโครงการ]],พารามิเตอร์[ชนิดโครงการ],0),MATCH(รายละเอียดโครงการ[[#Headers],[ผู้จัดการกลยุทธ์]],พารามิเตอร์[#Headers],0))*INDEX(พารามิเตอร์ของโครงการ!$B$12:$H$12,1,MATCH(รายละเอียดโครงการ[[#Headers],[ผู้จัดการกลยุทธ์]],พารามิเตอร์[#Headers],0))*รายละเอียดโครงการ[[#This Row],[งานโดยประมาณ]]","v":{"v":0,"d":"฿0"}},{"$f":"INDEX(พารามิเตอร์[],MATCH(รายละเอียดโครงการ[[#This Row],[ชนิดโครงการ]],พารามิเตอร์[ชนิดโครงการ],0),MATCH(รายละเอียดโครงการ[[#Headers],[ผู้เชี่ยวชาญด้านการออกแบบ]],พารามิเตอร์[#Headers],0))*INDEX(พารามิเตอร์ของโครงการ!$B$12:$H$12,1,MATCH(รายละเอียดโครงการ[[#Headers],[ผู้เชี่ยวชาญด้านการออกแบบ]],พารามิเตอร์[#Headers],0))*รายละเอียดโครงการ[[#This Row],[งานโดยประมาณ]]","v":{"v":0,"d":"฿0"}},{"$f":"INDEX(พารามิเตอร์[],MATCH(รายละเอียดโครงการ[[#This Row],[ชนิดโครงการ]],พารามิเตอร์[ชนิดโครงการ],0),MATCH(รายละเอียดโครงการ[[#Headers],[เจ้าหน้าที่จัดกิจกรรม]],พารามิเตอร์[#Headers],0))*INDEX(พารามิเตอร์ของโครงการ!$B$12:$H$12,1,MATCH(รายละเอียดโครงการ[[#Headers],[เจ้าหน้าที่จัดกิจกรรม]],พารามิเตอร์[#Headers],0))*รายละเอียดโครงการ[[#This Row],[งานโดยประมาณ]]","v":{"v":12000,"d":"฿12,000"}},{"$f":"INDEX(พารามิเตอร์[],MATCH(รายละเอียดโครงการ[[#This Row],[ชนิดโครงการ]],พารามิเตอร์[ชนิดโครงการ],0),MATCH(รายละเอียดโครงการ[[#Headers],[เจ้าหน้าที่ธุรการ]],พารามิเตอร์[#Headers],0))*INDEX(พารามิเตอร์ของโครงการ!$B$12:$H$12,1,MATCH(รายละเอียดโครงการ[[#Headers],[เจ้าหน้าที่ธุรการ]],พารามิเตอร์[#Headers],0))*รายละเอียดโครงการ[[#This Row],[งานโดยประมาณ]]","v":{"v":1500,"d":"฿1,500"}},{"$f":"INDEX(พารามิเตอร์[],MATCH(รายละเอียดโครงการ[[#This Row],[ชนิดโครงการ]],พารามิเตอร์[ชนิดโครงการ],0),MATCH(รายละเอียดโครงการ[[#Headers],[ผู้จัดการบัญชี]],พารามิเตอร์[#Headers],0))*INDEX(พารามิเตอร์ของโครงการ!$B$12:$H$12,1,MATCH(รายละเอียดโครงการ[[#Headers],[ผู้จัดการบัญชี]],พารามิเตอร์[#Headers],0))*รายละเอียดโครงการ[[#This Row],[งานที่ทำไปแล้ว]]","v":{"v":9180,"d":"฿9,180"}},{"$f":"INDEX(พารามิเตอร์[],MATCH(รายละเอียดโครงการ[[#This Row],[ชนิดโครงการ]],พารามิเตอร์[ชนิดโครงการ],0),MATCH(รายละเอียดโครงการ[[#Headers],[ผู้จัดการโครงการ]],พารามิเตอร์[#Headers],0))*INDEX(พารามิเตอร์ของโครงการ!$B$12:$H$12,1,MATCH(รายละเอียดโครงการ[[#Headers],[ผู้จัดการโครงการ]],พารามิเตอร์[#Headers],0))*รายละเอียดโครงการ[[#This Row],[งานที่ทำไปแล้ว]]","v":{"v":3060,"d":"฿3,060"}},{"$f":"INDEX(พารามิเตอร์[],MATCH(รายละเอียดโครงการ[[#This Row],[ชนิดโครงการ]],พารามิเตอร์[ชนิดโครงการ],0),MATCH(รายละเอียดโครงการ[[#Headers],[ผู้จัดการกลยุทธ์]],พารามิเตอร์[#Headers],0))*INDEX(พารามิเตอร์ของโครงการ!$B$12:$H$12,1,MATCH(รายละเอียดโครงการ[[#Headers],[ผู้จัดการกลยุทธ์]],พารามิเตอร์[#Headers],0))*รายละเอียดโครงการ[[#This Row],[งานที่ทำไปแล้ว]]","v":{"v":0,"d":"฿0"}},{"$f":"INDEX(พารามิเตอร์[],MATCH(รายละเอียดโครงการ[[#This Row],[ชนิดโครงการ]],พารามิเตอร์[ชนิดโครงการ],0),MATCH(รายละเอียดโครงการ[[#Headers],[ผู้เชี่ยวชาญด้านการออกแบบ]],พารามิเตอร์[#Headers],0))*INDEX(พารามิเตอร์ของโครงการ!$B$12:$H$12,1,MATCH(รายละเอียดโครงการ[[#Headers],[ผู้เชี่ยวชาญด้านการออกแบบ]],พารามิเตอร์[#Headers],0))*รายละเอียดโครงการ[[#This Row],[งานที่ทำไปแล้ว]]","v":{"v":0,"d":"฿0"}},{"$f":"INDEX(พารามิเตอร์[],MATCH(รายละเอียดโครงการ[[#This Row],[ชนิดโครงการ]],พารามิเตอร์[ชนิดโครงการ],0),MATCH(รายละเอียดโครงการ[[#Headers],[เจ้าหน้าที่จัดกิจกรรม]],พารามิเตอร์[#Headers],0))*INDEX(พารามิเตอร์ของโครงการ!$B$12:$H$12,1,MATCH(รายละเอียดโครงการ[[#Headers],[เจ้าหน้าที่จัดกิจกรรม]],พารามิเตอร์[#Headers],0))*รายละเอียดโครงการ[[#This Row],[งานที่ทำไปแล้ว]]","v":{"v":12240,"d":"฿12,240"}},{"$f":"INDEX(พารามิเตอร์[],MATCH(รายละเอียดโครงการ[[#This Row],[ชนิดโครงการ]],พารามิเตอร์[ชนิดโครงการ],0),MATCH(รายละเอียดโครงการ[[#Headers],[เจ้าหน้าที่ธุรการ]],พารามิเตอร์[#Headers],0))*INDEX(พารามิเตอร์ของโครงการ!$B$12:$H$12,1,MATCH(รายละเอียดโครงการ[[#Headers],[เจ้าหน้าที่ธุรการ]],พารามิเตอร์[#Headers],0))*รายละเอียดโครงการ[[#This Row],[งานที่ทำไปแล้ว]]","v":{"v":1530,"d":"฿1,530"}}]
[null,"ผลรวม",{"$nulls":5},{"$f":"SUBTOTAL(109,รายละเอียดโครงการ[งานโดยประมาณ])","v":1500},{"$f":"SUBTOTAL(109,รายละเอียดโครงการ[งานที่ทำไปแล้ว])","v":1510},{"$f":"SUBTOTAL(109,รายละเอียดโครงการ[ระยะเวลาโดยประมาณ])","v":225},{"$f":"SUBTOTAL(109,รายละเอียดโครงการ[ระยะเวลาจริง])","v":597}]

{"sheet":"ผลรวมของโครงการ","index":3,"n_rows":10,"n_cols":14,"rows_kept":10}
["ดูผลรวมของโครงการในเวิร์กชีตนี้ ชื่อบริษัทจะอัปเดตในเซลล์ทางด้านขวาโดยอัตโนมัติ คำแนะนำที่มีประโยชน์จะอยู่ในเซลล์ในคอลัมน์นี้ ใช้ลูกศรลงเพื่อเริ่มต้นใช้งาน",{"$f":"พารามิเตอร์ของโครงการ!B1","v":"ชื่อบริษัท"}]
["ชื่อของเวิร์กชีตนี้จะอยู่ในเซลล์ด้านขวา","ตัวติดตามโครงการการจัดการกิจกรรม"]
["ข้อความที่เป็นความลับจะอยู่ในเซลล์ด้านขวา",{"$f":"พารามิเตอร์ของโครงการ!B3","v":"ชื่อบริษัทที่เป็นความลับ"}]
["PivotTable ที่เริ่มต้นจากเซลล์ด้านขวาจะอัปเดตโดยอัตโนมัติ\nข้อมูล\nเมื่อต้องการรีเฟรช PivotTable ทางด้านขวา ให้เลือกตาราง (เซลล์ใดก็ได้ใน PivotTable) บนเครื่องมือ PivotTable | แท็บ Ribbon วิเคราะห์ ให้เลือก รีเฟรช หรือกดแป้น SHIFT+F10 ในเซลล์ใดก็ได้ใน PivotTable จากนั้นเลือก รีเฟรช","ชื่อโครงการ","การประเมินของผู้จัดการบัญชี","การประเมินของผู้จัดการโครงการ","การประเมินของผู้จัดการกลยุทธ์","การประเมินของผู้เชี่ยวชาญด้านการออกแบบ","การประเมินของเจ้าหน้าที่จัดกิจกรรม","การประเมินของเจ้าหน้าที่ธุรการ","ค่าจริงของผู้จัดการบัญชี","ค่าจริงของผู้จัดการโครงการ","ค่าจริงของผู้จัดการกลยุทธ์","ค่าจริงของผู้เชี่ยวชาญด้านการออกแบบ","ค่าจริงของเจ้าหน้าที่จัดกิจกรรม","ค่าจริงของเจ้าหน้าที่ธุรการ"]
[null,"โครงการ 1",{"v":7200,"d":"฿7,200.00"},{"v":2400,"d":"฿2,400.00"},{"v":18000,"d":"฿18,000.00"},{"v":0,"d":"฿0.00"},{"v":0,"d":"฿0.00"},{"v":1200,"d":"฿1,200.00"},{"v":7920,"d":"฿7,920.00"},{"v":2640,"d":"฿2,640.00"},{"v":19800,"d":"฿19,800.00"},{"v":0,"d":"฿0.00"},{"v":0,"d":"฿0.00"},{"v":1320,"d":"฿1,320.00"}]
[null,"โครงการ 2",{"v":14400,"d":"฿14,400.00"},{"v":24000,"d":"฿24,000.00"},{"v":6000,"d":"฿6,000.00"},{"v":4000,"d":"฿4,000.00"},{"v":0,"d":"฿0.00"},{"v":2400,"d":"฿2,400.00"},{"v":14040,"d":"฿14,040.00"},{"v":23400,"d":"฿23,400.00"},{"v":5850,"d":"฿5,850.00"},{"v":3900,"d":"฿3,900.00"},{"v":0,"d":"฿0.00"},{"v":2340,"d":"฿2,340.00"}]
[null,"โครงการ 3",{"v":18000,"d":"฿18,000.00"},{"v":12000,"d":"฿12,000.00"},{"v":0,"d":"฿0.00"},{"v":25000,"d":"฿25,000.00"},{"v":0,"d":"฿0.00"},{"v":3000,"d":"฿3,000.00"},{"v":18000,"d":"฿18,000.00"},{"v":12000,"d":"฿12,000.00"},{"v":0,"d":"฿0.00"},{"v":25000,"d":"฿25,000.00"},{"v":0,"d":"฿0.00"},{"v":3000,"d":"฿3,000.00"}]
[null,"โครงการ 4",{"v":5400,"d":"฿5,400.00"},{"v":10800,"d":"฿10,800.00"},{"v":0,"d":"฿0.00"},{"v":0,"d":"฿0.00"},{"v":1200,"d":"฿1,200.00"},{"v":900,"d":"฿900.00"},{"v":5220,"d":"฿5,220.00"},{"v":10440,"d":"฿10,440.00"},{"v":0,"d":"฿0.00"},{"v":0,"d":"฿0.00"},{"v":1160,"d":"฿1,160.00"},{"v":870,"d":"฿870.00"}]
[null,"โครงการ 5",{"v":9000,"d":"฿9,000.00"},{"v":3000,"d":"฿3,000.00"},{"v":0,"d":"฿0.00"},{"v":0,"d":"฿0.00"},{"v":12000,"d":"฿12,000.00"},{"v":1500,"d":"฿1,500.00"},{"v":9180,"d":"฿9,180.00"},{"v":3060,"d":"฿3,060.00"},{"v":0,"d":"฿0.00"},{"v":0,"d":"฿0.00"},{"v":12240,"d":"฿12,240.00"},{"v":1530,"d":"฿1,530.00"}]
[null,"ผลรวมทั้งหมด",{"v":54000,"d":"฿54,000.00"},{"v":52200,"d":"฿52,200.00"},{"v":24000,"d":"฿24,000.00"},{"v":29000,"d":"฿29,000.00"},{"v":13200,"d":"฿13,200.00"},{"v":9000,"d":"฿9,000.00"},{"v":54360,"d":"฿54,360.00"},{"v":51540,"d":"฿51,540.00"},{"v":25650,"d":"฿25,650.00"},{"v":28900,"d":"฿28,900.00"},{"v":13400,"d":"฿13,400.00"},{"v":9060,"d":"฿9,060.00"}]